Cogmind - Beta 12 @@@ ROGUE MODE // 2023.05.13 @ 16:31:00 Player: Anbaraen Result: Destroyed by G-47 Trooper with Particle Gun Performance ------------- Evolutions (2) 1000 Regions Visited (3) 600 Robots Destroyed (21) 105 Value Destroyed (653) 653 Prototype IDs (0) 0 Alien Tech Used (0) 0 Bonus (0) 0 TOTAL SCORE: 2358 Bonus ------- None Cogmind --------- Core Integrity 0/550 Matter 290/300 Energy 100/100 System Corruption 0% Temperature Cool (18) Movement Core (200) Ox3 Location -8/Materials Parts ------- > --- POWER (1) -------- (None) > --- PROPULSION (3) --- (None) > --- UTILITY (4) ------ Medium Storage Unit > --- WEAPON (3) ------- Katana > --- INVENTORY (10) --- Medium Storage Unit Medium Storage Unit Microactuators Heavy Assault Rifle Shotgun Minigun EMP Blaster Maul Scythe Peak State ------------ > --- POWER ------------ Light Deuterium Engine > --- PROPULSION ------- Improved Carbon-fiber Leg Improved Carbon-fiber Leg Compact Wheel > --- UTILITY ---------- Medium Storage Unit Microactuators Layered Light Armor Plating Layered Light Armor Plating > --- WEAPON ----------- Katana Scythe Axe > --- INVENTORY -------- Carbon-fiber Leg Medium Storage Unit Medium Storage Unit Microactuators Heavy Assault Rifle Shotgun Minigun EMP Blaster Maul Scythe [Rating: 36] Favorites ----------- Power Light Ion Engine Engine Light Ion Engine Power Core Light Nuclear Core Propulsion Compact Wheel Leg Aluminum Leg Wheel Compact Wheel Hover Unit Hover Unit Utility Small Storage Unit Device Microactuators Storage Small Storage Unit Protection Layered Light Armor Plating Weapon Scythe Energy Gun EM Pulse Gun Ballistic Gun Assault Rifle Launcher EMP Blaster Slashing Weapon Scythe Build | -11 -10 -9 -8 ------- Run | Jun Mat Mat Mat Slots Evolved 4 | . . 2 2 Power . | . . . . Propulsion 1 | . . 1 . Utility 2 | . . 1 1 Weapon 1 | . . . 1 Parts Attached 41 | . 4 12 25 Power 7 | . . 1 6 Engine 6 | . . 1 5 Core 1 | . . . 1 Reactor . | . . . . Propulsion 12 | . . 5 7 Treads . | . . . . Leg 5 | . . 1 4 Wheel 6 | . . 4 2 Hover 1 | . . . 1 Flight . | . . . . Utility 10 | . 4 3 3 Device 2 | . 1 . 1 Storage 6 | . 3 3 . Processor . | . . . . Hackware . | . . . . Protection 2 | . . . 2 Artifact . | . . . . Weapon 12 | . . 3 9 Energy Gun 1 | . . . 1 Energy Cannon . | . . . . Ballistic Gun 2 | . . . 2 Ballistic Cannon . | . . . . Launcher 1 | . . . 1 Special Weapon . | . . . . Impact Weapon . | . . . . Slashing Weapon 8 | . . 3 5 Piercing Weapon . | . . . . Special Melee Weapon . | . . . . Unidentified Prototypes . | . . . . Parts Lost 25 | . . 6 19 Power 7 | . . 2 5 Propulsion 9 | . . 4 5 Utility 5 | . . . 5 Weapon 4 | . . . 4 Highest Loss Streak 12 | . . 4 12 To Critical Strikes . | . . . . Average Slot Usage (%) 79 | . 94 87 63 Engine 9 | . 14 10 5 Leg 6 | . 28 3 2 Wheel 10 | . . 18 4 Device 2 | . 5 . 3 Storage 24 | . 17 33 16 Protection 2 | . . . 6 Energy Gun 3 | . 14 1 . Ballistic Gun 3 | . 14 1 1 Slashing Weapon 16 | . . 17 20 Naked Turns . | . . . . Heaviest Build 32 | 12 17 27 32 Greatest Support 36 | 20 20 36 36 Greatest Overweight (x) 10 | . . 8 10 Average Overweight (x) . | . . . 2 Largest Inventory Capacity 25 | 8 25 10 10 Average Capacity 9 | 8 8 8 10 Most Carried 10 | 6 8 10 10 Average Carried 7 | 6 5 7 7 Final Capacity 10 | 8 8 10 10 Final Carried 9 | 6 7 8 9 Class Distribution -------------------- 100% | Mutant Dominant Class ---------------- Mutant | -10/Materials Mutant | -9/Materials Mutant | -8/Materials Resources | -11 -10 -9 -8 ----------- Run | Jun Mat Mat Mat Matter Collected 519 | 200 . 139 180 Remotely . | . . . . Salvage Created 823 | . 60 374 389 Parts 61 | . 1 25 35 Haulers Intercepted 1 | . 1 . . Recyclers Shooed 1 | . . 1 . Parts Field Recycled . | . . . . Retrieved Matter . | . . . . Parts Self-Destructed . | . . . . Prevented . | . . . . Kills | -11 -10 -9 -8 ------- Run | Jun Mat Mat Mat Combat Hostiles Destroyed 16 | . . 7 9 Melee 14 | . . 7 7 AOE 2 | . . . 2 Classes Destroyed 10 | . 1 5 4 Tunneler 1 | . . 1 . Hauler 1 | . 1 . . Operator 1 | . . . 1 Watcher 2 | . . 2 . Swarmer 5 | . . 3 2 Grunt 3 | . . . 3 Brawler 1 | . . 1 . Sentry 4 | . . 3 1 Specialist 2 | . . . 2 Hunter 1 | . . . 1 Best Kill Streak 6 | . 1 3 6 Combat Bots Only 6 | . . 3 6 Max Kills in Single Turn 2 | . 1 1 2 Gunslinging . | . . . . Exploded 2 | . . . 2 Melee 1 | . . 1 1 Uniques/NPCs Destroyed . | . . . . Combat | -11 -10 -9 -8 -------- Run | Jun Mat Mat Mat Damage Taken 3181 | . . 938 2243 Core 863 | . . 310 553 Absorbed by Shields . | . . . . Regen/Repaired (Parts) 89 | . . 41 48 Core Remaining (%) 74 | 100 100 22 . Volleys Fired 20 | . 3 . 17 Largest 2 | . 2 . 1 Hottest 65 | . 60 . 65 Shots Fired 23 | . 6 . 17 Gun 22 | . 6 . 16 Cannon . | . . . . Launcher 1 | . . . 1 Special . | . . . . Kinetic 7 | . 3 . 4 Thermal 12 | . . . 12 Explosive . | . . . . Electromagnetic 4 | . 3 . 1 Robot Hit Streak 4 | . 1 . 4 Robot Miss Streak 6 | . 2 . 6 Penetration Max . | . . . . Secondary Targets . | . . . . Shots Hit Robots 56 | . 3 19 34 Core Hits 22 | . 1 9 12 Critical Kills . | . . . . Critical Parts Destroyed . | . . . . Critical Strikes 4 | . . 1 3 Sever 4 | . . 1 3 Melee Attacks 67 | . . 32 35 Impact . | . . . . Slashing 67 | . . 32 35 Piercing . | . . . . Sneak Attacks 5 | . . 4 1 Combat Hostiles . | . . . . Follow-up Attacks 9 | . . 5 4 Damage Inflicted 1957 | . 42 772 1143 Guns 186 | . 42 . 144 Cannons . | . . . . Explosions 162 | . . . 162 Melee 1609 | . . 772 837 Ramming . | . . . . Kinetic 47 | . 14 . 33 Thermal 193 | . . . 193 Explosive . | . . . . Electromagnetic 108 | . 28 . 80 Impact . | . . . . Slashing 1609 | . . 772 837 Piercing . | . . . . Highest Corruption 1 | . . 1 . Average Corruption 1 | . . 1 . Corruption Purged . | . . . . Corruption Blocked . | . . . . Effects 2 | . . 2 . Message Errors 1 | . . 1 . Energy Discharges 1 | . . 1 . Overload Shots . | . . . . Overflow Damage 200 | . . 150 50 Projectiles . | . . . . Explosions . | . . . . Melee 200 | . . 150 50 Knockbacks . | . . . . Impact . | . . . . Kinetic . | . . . . Secondary . | . . . . Self-Inflicted Damage 67 | . . . 67 Shots 2 | . . . 2 Rammed . | . . . . Targets Rammed . | . . . . Kicked . | . . . . Crushed . | . . . . Highest Temperature 96 | . . . 96 Average Temperature 32 | . . . 32 Received Heat Transfer 1095 | . . 165 930 Siege Activations . | . . . . Robots Corrupted . | . . . . Combat Hostiles . | . . . . Parts Fried . | . . . . Impact Corruptions . | . . . . Robots Melted . | . . . . Combat Hostiles . | . . . . Parts Melted . | . . . . Heat Transferred 359 | . . . 359 Parts Sabotaged . | . . . . Parts Stolen . | . . . . Parts Stripped . | . . . . Power Chain Reactions 1 | . . . 1 Missiles Intercepted . | . . . . Alert | -11 -10 -9 -8 ------- Run | Jun Mat Mat Mat Peak Influence 222 | . 42 222 212 Initial 83 | . . 17 83 Average 69 | . 20 78 76 Maximum Alert Level 1 | . . 1 1 Low Security (%) 95 | 100 100 91 98 Level 1 4 | . . 8 1 Level 2 . | . . . . Level 3 . | . . . . Level 4 . | . . . . Level 5 . | . . . . High Security . | . . . . Max Security . | . . . . Squads Dispatched 5 | . . 1 4 Investigation . | . . . . Extermination . | . . . . Reinforcement 5 | . . 1 4 Assault . | . . . . Garrison . | . . . . Intercept . | . . . . Searches Triggered . | . . . . Construction Impeded . | . . . . Haulers Reinforced . | . . . . Active Scanning Responses . | . . . . Cargo Convoy Interrupts . | . . . . Stealth | -11 -10 -9 -8 --------- Run | Jun Mat Mat Mat Distress Signals 3 | . . 1 2 Communications Jammed . | . . . . Distress Signals . | . . . . Times Spotted 42 | . 1 16 25 Peak Tracking Total 9 | . 1 4 9 Tactical Retreats 6 | . . 2 4 Traps | -11 -10 -9 -8 ------- Run | Jun Mat Mat Mat Traps Triggered . | . . . . Indirectly . | . . . . Trap Hack Attempts . | . . . . Triggered . | . . . . Disarmed . | . . . . Reprogrammed . | . . . . Reused . | . . . . Traps Extracted . | . . . . Installed . | . . . . Triggered . | . . . . Machines | -11 -10 -9 -8 ---------- Run | Jun Mat Mat Mat Machines Disabled 1 | . 1 . . Max in Single Turn 1 | . 1 . . Machines Repaired . | . . . . Machines Sabotaged . | . . . . Overloaded Fab Kills . | . . . . Hacking | -11 -10 -9 -8 --------- Run | Jun Mat Mat Mat Machines Accessed 7 | . 2 4 1 Terminals 4 | . 2 2 . Fabricators . | . . . . Repair Stations 2 | . . 1 1 Recycling Units . | . . . . Scanalyzers 1 | . . 1 . Garrison Access . | . . . . Total Hacks 23 | . 5 15 3 Successful 16 | . 3 11 2 Failed 7 | . 2 4 1 Catastrophic 2 | . . 2 . Database Lockouts . | . . . . Manual . | . . . . Terminals 14 | . 5 9 . Fabricators . | . . . . Repair Stations 5 | . . 2 3 Recycling Units . | . . . . Scanalyzers 4 | . . 4 . Garrison Access . | . . . . Terminal Hacks 8 | . 3 5 . Record 6 | . 2 4 . Surveillance Status 1 | . . 1 . Hauler Manifests 1 | . 1 . . Fabricator Hacks . | . . . . Repair Station Hacks 4 | . . 2 2 Scan Component 2 | . . 1 1 Repair 2 | . . 1 1 Recycling Unit Hacks . | . . . . Scanalyzer 4 | . . 4 . Insert Component 2 | . . 2 . Analyze 2 | . . 2 . Garrison Access Hacks . | . . . . Unauthorized Hacks . | . . . . Terminals . | . . . . Fabricators . | . . . . Repair Stations . | . . . . Recycling Units . | . . . . Scanalyzers . | . . . . Garrison Access . | . . . . Data Cores Recovered . | . . . . Used . | . . . . Hacking Detections 4 | . 1 3 . Full Trace Events . | . . . . Feedback Events . | . . . . Feedback Blocked . | . . . . Robot Schematics Acquired . | . . . . Robots Built . | . . . . Authchips . | . . . . Time . | . . . . Total Robot Build Rating . | . . . . Part Schematics Acquired 2 | . . 2 . Parts Built . | . . . . Authchips . | . . . . Time . | . . . . Total Part Build Rating . | . . . . Parts Repaired 2 | . . 1 1 Time 76 | . . 38 38 Parts Recycled . | . . . . Recycled Matter . | . . . . Retrieved Matter . | . . . . Retrieved Components . | . . . . Parts Scanalyzed 2 | . . 2 . Part Schematics Acquired 2 | . . 2 . Parts Damaged 1 | . . 1 . Bothacking | -11 -10 -9 -8 ------------ Run | Jun Mat Mat Mat Used RIF Installer . | . . . . Robots Hacked . | . . . . Non-combat . | . . . . Combat . | . . . . Robot Hacks Applied . | . . . . Relay Couplers Released . | . . . . Fabnet Peak Effective % . | . . . . Robots Rewired . | . . . . Allies Hacked . | . . . . Hacks Repelled . | . . . . Allies | -11 -10 -9 -8 -------- Run | Jun Mat Mat Mat Total Allies . | . . . . Largest Group . | . . . . Highest-Rated Group . | . . . . Highest-Rated Ally . | . . . . Total Orders . | . . . . Ally Attacks . | . . . . Total Damage . | . . . . Kills . | . . . . Allies Corrupted . | . . . . Allies Melted . | . . . . Intel | -11 -10 -9 -8 ------- Run | Jun Mat Mat Mat Robot Analysis Total . | . . . . Derelict Logs Recovered . | . . . . Drone Launches . | . . . . Drone Recoveries . | . . . . Exploration | -11 -10 -9 -8 ------------- Run | Jun Mat Mat Mat Turns Passed 1611 | 3 231 764 613 Spaces Moved 898 | 3 168 517 210 Core 55 | . . 10 45 Treads . | . . . . Legs 246 | 3 168 45 30 Wheels 590 | . . 462 128 Hover 7 | . . . 7 Flight . | . . . . Fastest Speed 86 | 120 120 86 105 Average Speed 137 | 120 120 116 204 Slowest Speed 550 | 120 120 450 550 Overloaded Moves . | . . . . Propulsion Burnouts . | . . . . Robots Hopped . | . . . . Cave-ins Triggered . | . . . . Exploration Rate (%) 21 | 2 33 36 15 Regions Visited 3 Branch Regions . Pre-discovered Areas . | . . . . Known Exits Taken . | . . . . Unknown Exits Taken 3 | 1 1 1 . Scrap Searched . | . . . . Spaces Dug . | . . . . Terrain Destroyed 10 | . . . 10 Melee . | . . . . Projectile . | . . . . AOE 10 | . . . 10 Terrain Rammed . | . . . . Walls Destroyed . | . . . . Machines Disabled . | . . . . Actions | -11 -10 -9 -8 --------- Run | Jun Mat Mat Mat Total 1171 | 2 193 645 331 Wait 111 | . 7 75 29 Move 895 | 2 167 516 210 Hop . | . . . . Pick Up 33 | . 8 10 15 Fast Attach 9 | . . 2 7 Attach 20 | . 3 6 11 Detach 3 | . . 2 1 Swap 12 | . 1 4 7 Drop 15 | . 4 7 4 Fire 20 | . 3 . 17 Melee 53 | . . 23 30 Ram . | . . . . Kick . | . . . . Crush . | . . . . Escape Stasis . | . . . . Rewire . | . . . . Trap . | . . . . Miscellaneous . | . . . . Route ------- -11/Junkyard -10/Materials -9/Materials -8/Materials History --------- Turn | Location | Event 1 | -11/Junkyard | Discovered new exit (range 3) 4 | -11/Junkyard | Entered Materials 140 | -10/Materials | Discovered new exit (range 15) 235 | -10/Materials | Entered another Materials area 235 | -9/Materials | Evolved 2 slots: Propulsion x1, Utility x1 313 | -9/Materials | Build established: Mutant 807 | -9/Materials | Discovered new exit (range 16) 902 | -9/Materials | Repaired Scythe 983 | -9/Materials | Core integrity fell below 50% 999 | -9/Materials | Entered another Materials area 999 | -8/Materials | Evolved 2 slots: Utility x1, Weapon x1 1023 | -8/Materials | Lost 4 parts (2p2n) 1283 | -8/Materials | Lost 7 parts (2p1n2u2w) 1435 | -8/Materials | Repaired Scythe 1594 | -8/Materials | Core integrity fell below 50% 1611 | -8/Materials | Core integrity fell below 20% 1612 | -8/Materials | Destroyed by G-47 Trooper with Particle Gun Last Messages --------------- 01581_ Knocked back. 01582_ K-01 Serf collects debris. 01590_ U-05 Engineer lays Concrete. 01595_ Acquired Ion Engine. 01595_ U-05 Engineer lays Concrete. 01596_ Slug penetrates Wall. 01596_ U-05 Engineer lays Concrete. 01598_ Imp. Carbon-fiber Leg destroyed. 01600_ U-05 Engineer lays Concrete. 01600_ Microactuators destroyed. 01603_ U-05 Engineer lays Concrete. 01604_ Carbon-fiber Leg destroyed. 01605_ U-05 Engineer lays Concrete. 01606_ Critical hit (Burn: +37). 01606_ U-05 Engineer lays Concrete. 01607_ Axe destroyed. 01607_ Ion Engine destroyed. 01607_ G-47 Trooper destroyed. 01610_ Scythe destroyed. 01610_ Critical hit (Blast). Map ----- +----------------------------------------------------+ | ????????????????????????????????? | | ????????####????????????????????? | | ???????? ! ????????????????????? | | ???????? ????????????????????? | | ????????!! ????????????????????? | | ?????????! ????????????????????? | | ????????? ????????????????????? | | ?????????[==????????????????????? | | ????????##+###??????????????????? | | ?????????[!=%???????????????????? | | ???????###=##???????????????????? | | ???????# #%##???????????????????? | | ???????# [!*####????###########?? | | ???????# %[=#;;###### ??? | | ???????###%%!= " #""" ??? | | ?????????#!#= """""#"R """ ??? | | ?????????#%[= " "" """ #?? | | ?????????#!! " "" #?? | | ?????????#!! * " #?? | | ?????????# %%! ; #?? | | ??#######; == ; #?? | | ??# *; ;###########?? | | ??# ; !##????????? | | ??# *Hgg!; !#????????? | | ??# Y g#= !#????????? | | ??# !!% @/% * !#????????? | | ??# %#% """ #????????? | | ??######## "R !##????????? | | ????????# """ ####?????????? | | ????????# #????????????? | | ????????# #????????????? | | ????????# ###+####????????????? | | ????????# #???????????????????? | | ????????# #???????????????????? | | ???????## ##??????????????????? | | ???##### #??????????????????? | | ???#!! [ #??????????????????? | | ???# #??????????????????? | | ???#!! % #??????????????????? | | ???#!!! #??????????????????? | | ???# ## ##??????????????????? | | ???#!! ## #???????????????????? | | ######### #???????????????????? | | # # #???????????????????? | | # # #########???????????? | | # # # #???????????? | | #""" # # !#???????????? | | #""" # # """ #???????????? | | #""" / # """ #???????????? | | # # # """ #???????????? | +----------------------------------------------------+ Best States ------------- Heat Dissipation 31 Energy Generation 14 Energy Capacity 250 Matter Stores 300 Matter Capacity 300 Sight Range 16 Terrain Scan Density 10 Armor Coverage 300 Melee Speed Boost 20 Evasion (%) 55 Item Schematics ----------------- Aluminum Leg | -9/Materials | Scanalyzed Scythe | -9/Materials | Scanalyzed Robot Schematics ------------------ None Fabricated ------------ Nothing Alien Tech Used ----------------- None Achievements -------------- None Challenges ------------ None Game ------ Seed SmartbombBoreSlayer Manual? 0 Play Time 00:27:30 Cumulative 13.9 hours Start 2023.05.13 @ 12:25:35 End 2023.05.13 @ 16:31:00 Sessions 3 Manual Loads 0 Difficulty Rogue Special Mode None Game No. 36 Rogue 36 Adventurer 0 Explorer 0 Win Type - Total 0 Types 0/0/0/0/0/0/0/0/0 Lore% 10 Gallery% 19 Achievement% 17 Wizard Run 0 Options --------- ASCII 0 Keyboard 0 Movement Mouse Keybinds 0 Fullscreen 1 Font 24/Smallcaps Map View 76x50 Tactical HUD 1 Map Filters NONE Filters NONE Steam 1 RUN: 290c74fa-cb6f-4b88-a03b-6e3822e0dc37